[Event "Early-Titled-Tuesday-Blitz-March-26-2024"]
[Site "Chess.com"]
[Date "2024.03.26"]
[Round "1"]
[White "zubridis"]
[Black "AryanTari"]
[Result "0-1"]
[WhiteElo "2532"]
[BlackElo "3010"]
[TimeControl "180+1"]
[EndTime "8:06:51 PDT"]
[Termination "AryanTari won on time"]

1. e4 {[%clk 0:02:58.9]} 1... e5 {[%clk 0:02:56.3]} 2. Nf3 {[%clk 0:02:57.8]}
2... Nc6 {[%clk 0:02:56.6]} 3. Bc4 {[%clk 0:02:57.8]} 3... Nf6 {[%clk
0:02:56.2]} 4. d3 {[%clk 0:02:57.9]} 4... Bc5 {[%clk 0:02:56.5]} 5. O-O {[%clk
0:02:54.7]} 5... d6 {[%clk 0:02:56.7]} 6. Be3 {[%clk 0:02:53.5]} 6... Bb6 {[%clk
0:02:38.6]} 7. d4 {[%clk 0:02:30.5]} 7... O-O {[%clk 0:02:17]} 8. dxe5 {[%clk
0:02:10.1]} 8... Nxe5 {[%clk 0:02:13.4]} 9. Nxe5 {[%clk 0:02:09]} 9... dxe5
{[%clk 0:02:14.3]} 10. Qe2 {[%clk 0:01:55.8]} 10... Qe7 {[%clk 0:01:57.3]} 11.
Nd2 {[%clk 0:01:49.5]} 11... Be6 {[%clk 0:01:54.1]} 12. Bxe6 {[%clk 0:01:37.5]}
12... Qxe6 {[%clk 0:01:55]} 13. f3 {[%clk 0:01:31.3]} 13... Nh5 {[%clk
0:01:48.4]} 14. g3 {[%clk 0:01:28.6]} 14... Rad8 {[%clk 0:01:39.5]} 15. Rfd1
{[%clk 0:01:23.5]} 15... h6 {[%clk 0:01:25.8]} 16. a4 {[%clk 0:01:16.8]} 16...
Rd7 {[%clk 0:01:16.1]} 17. Nc4 {[%clk 0:01:04.3]} 17... Rfd8 {[%clk 0:01:14.2]}
18. b3 {[%clk 0:00:50.8]} 18... Nf6 {[%clk 0:00:54.1]} 19. Rxd7 {[%clk
0:00:46.9]} 19... Qxd7 {[%clk 0:00:49.8]} 20. Nxe5 {[%clk 0:00:39.9]} 20... Qd2
{[%clk 0:00:49.6]} 21. Qxd2 {[%clk 0:00:32.6]} 21... Rxd2 {[%clk 0:00:50.5]} 22.
Bxb6 {[%clk 0:00:20.8]} 22... axb6 {[%clk 0:00:51.4]} 23. Rc1 {[%clk 0:00:20.4]}
23... g5 {[%clk 0:00:52]} 24. g4 {[%clk 0:00:12.7]} 24... h5 {[%clk 0:00:47.8]}
25. h3 {[%clk 0:00:12.3]} 25... h4 {[%clk 0:00:48.2]} 26. Nc4 {[%clk 0:00:09.5]}
26... Re2 {[%clk 0:00:48.4]} 27. Kf1 {[%clk 0:00:05.4]} 27... Rh2 {[%clk
0:00:47.8]} 28. Kg1 {[%clk 0:00:02.3]} 28... Rxh3 {[%clk 0:00:48]} 29. Kg2
{[%clk 0:00:02.4]} 29... Rg3+ {[%clk 0:00:47.9]} 30. Kf2 {[%clk 0:00:02.9]}
30... Nd7 {[%clk 0:00:47.4]} 31. Rd1 {[%clk 0:00:01.8]} 31... Nc5 {[%clk
0:00:47.7]} 32. Rd8+ {[%clk 0:00:01.4]} 32... Kg7 {[%clk 0:00:47.5]} 33. Rd1
{[%clk 0:00:01.3]} 33... Ne6 {[%clk 0:00:47.5]} 0-1

[Event "Early-Titled-Tuesday-Blitz-March-26-2024"]
[Site "Chess.com"]
[Date "2024.03.26"]
[Round "1"]
[White "astralpulse"]
[Black "rhwr"]
[Result "1-0"]
[WhiteElo "2640"]
[BlackElo "2305"]
[TimeControl "180+1"]
[EndTime "8:06:54 PDT"]
[Termination "astralpulse won by resignation"]

1. Nf3 {[%clk 0:02:59.9]} 1... c5 {[%clk 0:02:58.9]} 2. c4 {[%clk 0:02:59.3]}
2... Nf6 {[%clk 0:02:58.2]} 3. e3 {[%clk 0:02:58.7]} 3... g6 {[%clk 0:02:56.8]}
4. b3 {[%clk 0:02:57.7]} 4... Bg7 {[%clk 0:02:56.8]} 5. Bb2 {[%clk 0:02:57.9]}
5... O-O {[%clk 0:02:56.3]} 6. Be2 {[%clk 0:02:58.5]} 6... Nc6 {[%clk
0:02:49.2]} 7. O-O {[%clk 0:02:58.2]} 7... Re8 {[%clk 0:02:30]} 8. Nc3 {[%clk
0:02:39]} 8... e5 {[%clk 0:02:24.7]} 9. d3 {[%clk 0:02:33.2]} 9... d5 {[%clk
0:02:17]} 10. cxd5 {[%clk 0:02:32.5]} 10... Nxd5 {[%clk 0:02:16.1]} 11. Nxd5
{[%clk 0:02:24.4]} 11... Qxd5 {[%clk 0:02:15.5]} 12. Rc1 {[%clk 0:02:21.5]}
12... b6 {[%clk 0:01:54.9]} 13. Nd2 {[%clk 0:01:55.3]} 13... Bb7 {[%clk
0:01:30.9]} 14. Ne4 {[%clk 0:01:45.1]} 14... Rad8 {[%clk 0:01:21.6]} 15. a3
{[%clk 0:01:42.9]} 15... h6 {[%clk 0:01:18]} 16. Qc2 {[%clk 0:01:39.1]} 16...
Na5 {[%clk 0:01:07]} 17. b4 {[%clk 0:01:33]} 17... f5 {[%clk 0:01:02.6]} 18.
bxa5 {[%clk 0:01:19.8]} 18... fxe4 {[%clk 0:01:02.1]} 19. d4 {[%clk 0:01:19.2]}
19... Kh7 {[%clk 0:00:59.8]} 20. a6 {[%clk 0:00:46.8]} 20... Ba8 {[%clk
0:00:44.9]} 21. Bb5 {[%clk 0:00:38.8]} 21... Rf8 {[%clk 0:00:41.7]} 22. dxc5
{[%clk 0:00:34.8]} 22... Rc8 {[%clk 0:00:39.7]} 23. Rfd1 {[%clk 0:00:27.3]}
23... Qxc5 {[%clk 0:00:39.3]} 24. Qxc5 {[%clk 0:00:27.2]} 24... bxc5 {[%clk
0:00:35.1]} 25. Rd7 {[%clk 0:00:26.2]} 25... Bc6 {[%clk 0:00:24.7]} 26. Bxc6
{[%clk 0:00:25.5]} 26... Rxc6 {[%clk 0:00:24.9]} 27. Bxe5 {[%clk 0:00:26]} 27...
Rg8 {[%clk 0:00:25.5]} 28. Rxa7 {[%clk 0:00:25.9]} 28... c4 {[%clk 0:00:22.6]}
29. h3 {[%clk 0:00:19.6]} 29... c3 {[%clk 0:00:21.2]} 30. Rxc3 {[%clk
0:00:18.7]} 30... Rxc3 {[%clk 0:00:20.9]} 31. Bxc3 {[%clk 0:00:18.8]} 1-0

[Event "Early-Titled-Tuesday-Blitz-March-26-2024"]
[Site "Chess.com"]
[Date "2024.03.26"]
[Round "1"]
[White "Jospem"]
[Black "AGW2016"]
[Result "1-0"]
[WhiteElo "3083"]
[BlackElo "2547"]
[TimeControl "180+1"]
[EndTime "8:06:55 PDT"]
[Termination "Jospem won by resignation"]

1. e4 {[%clk 0:03:00.9]} 1... e5 {[%clk 0:02:58.8]} 2. Nf3 {[%clk 0:03:00.5]}
2... Nc6 {[%clk 0:02:58.6]} 3. Nc3 {[%clk 0:03:01.2]} 3... Nf6 {[%clk
0:02:55.2]} 4. h3 {[%clk 0:03:01.2]} 4... g6 {[%clk 0:02:40.9]} 5. Bc4 {[%clk
0:02:59.7]} 5... Bg7 {[%clk 0:02:41.4]} 6. d3 {[%clk 0:02:59.4]} 6... O-O {[%clk
0:02:41.7]} 7. Bg5 {[%clk 0:03:00]} 7... d6 {[%clk 0:02:40.8]} 8. Qd2 {[%clk
0:02:59.4]} 8... Be6 {[%clk 0:02:38.8]} 9. O-O-O {[%clk 0:02:58.9]} 9... Qd7
{[%clk 0:02:32.8]} 10. h4 {[%clk 0:02:56.7]} 10... h5 {[%clk 0:02:31]} 11. Kb1
{[%clk 0:02:54.9]} 11... Nd4 {[%clk 0:02:30.4]} 12. Bxe6 {[%clk 0:02:52.9]}
12... Nxe6 {[%clk 0:02:29.3]} 13. Bxf6 {[%clk 0:02:46.1]} 13... Bxf6 {[%clk
0:02:30.2]} 14. Rdg1 {[%clk 0:02:46.2]} 14... Ng7 {[%clk 0:02:15.2]} 15. g4
{[%clk 0:02:40.3]} 15... hxg4 {[%clk 0:02:15.3]} 16. Nh2 {[%clk 0:02:40.6]}
16... Nh5 {[%clk 0:02:09.6]} 17. Nxg4 {[%clk 0:02:40.4]} 17... Bg7 {[%clk
0:02:10.3]} 18. Ne2 {[%clk 0:02:31.7]} 18... d5 {[%clk 0:02:03.2]} 19. Qg5
{[%clk 0:02:21.3]} 19... dxe4 {[%clk 0:01:56.7]} 20. dxe4 {[%clk 0:02:20.5]}
20... Qd8 {[%clk 0:01:54.9]} 21. Nh6+ {[%clk 0:02:07.6]} 21... Kh7 {[%clk
0:01:48.5]} 22. Nf5 {[%clk 0:02:07.7]} 22... Qf6 {[%clk 0:01:18]} 23. Qg4 {[%clk
0:01:51.4]} 23... Rad8 {[%clk 0:01:14.6]} 24. a3 {[%clk 0:01:50.7]} 24... Rd2
{[%clk 0:01:14.4]} 25. Nxg7 {[%clk 0:01:40.3]} 25... Qxg7 {[%clk 0:01:06.6]} 26.
Ng3 {[%clk 0:01:40.1]} 26... Nxg3 {[%clk 0:01:03.7]} 27. fxg3 {[%clk 0:01:40.1]}
27... f5 {[%clk 0:00:53.2]} 28. exf5 {[%clk 0:01:39.5]} 28... gxf5 {[%clk
0:00:53.4]} 29. Qb4 {[%clk 0:01:40.4]} 29... Rfd8 {[%clk 0:00:48.4]} 30. g4
{[%clk 0:01:40.7]} 30... f4 {[%clk 0:00:47.4]} 31. h5 {[%clk 0:01:36.7]} 31...
Qg5 {[%clk 0:00:40]} 32. Qxb7 {[%clk 0:01:32.5]} 32... R8d7 {[%clk 0:00:39.1]}
33. Qe4+ {[%clk 0:01:32.2]} 33... Kh6 {[%clk 0:00:38.3]} 34. Re1 {[%clk
0:01:30.4]} 34... Re7 {[%clk 0:00:38.6]} 35. Qb4 {[%clk 0:01:26.7]} 35... f3
{[%clk 0:00:34.9]} 36. Rhf1 {[%clk 0:01:24]} 36... Rd4 {[%clk 0:00:30.1]} 37.
Qc3 {[%clk 0:01:19.4]} 37... Rxg4 {[%clk 0:00:20.7]} 38. Rxf3 {[%clk 0:01:15.7]}
38... Rf4 {[%clk 0:00:21.3]} 39. Rfe3 {[%clk 0:01:15.2]} 39... e4 {[%clk
0:00:19.7]} 40. Qc6+ {[%clk 0:01:10.8]} 40... Qf6 {[%clk 0:00:18.9]} 41. Qxf6+
{[%clk 0:01:08.7]} 41... Rxf6 {[%clk 0:00:19.8]} 42. Rxe4 {[%clk 0:01:09.5]}
42... Rxe4 {[%clk 0:00:20.2]} 43. Rxe4 {[%clk 0:01:10.4]} 43... Kxh5 {[%clk
0:00:21]} 44. Rc4 {[%clk 0:01:09.7]} 44... c6 {[%clk 0:00:21.3]} 45. Rd4 {[%clk
0:01:05.7]} 45... Rf7 {[%clk 0:00:20.2]} 46. b4 {[%clk 0:01:05.5]} 46... Kg5
{[%clk 0:00:20.2]} 47. Kb2 {[%clk 0:01:05.5]} 47... Kf5 {[%clk 0:00:20.7]} 48.
Kc3 {[%clk 0:01:05.7]} 48... Ke5 {[%clk 0:00:21.2]} 49. Rd8 {[%clk 0:01:05.6]}
49... Rf3+ {[%clk 0:00:19.5]} 50. Kb2 {[%clk 0:01:05.5]} 50... Rf7 {[%clk
0:00:19]} 51. Kb3 {[%clk 0:01:05.4]} 51... Rf3+ {[%clk 0:00:18.2]} 52. c3 {[%clk
0:01:05.8]} 52... Rf7 {[%clk 0:00:19]} 53. a4 {[%clk 0:01:06]} 53... Rc7 {[%clk
0:00:18.3]} 54. Kc4 {[%clk 0:01:05.8]} 54... Re7 {[%clk 0:00:19.1]} 55. Kc5
{[%clk 0:01:05.5]} 55... Rc7 {[%clk 0:00:18.6]} 56. a5 {[%clk 0:01:05.9]} 56...
Ke4 {[%clk 0:00:18.4]} 57. Rd6 {[%clk 0:01:06.1]} 1-0

[Event "Early-Titled-Tuesday-Blitz-March-26-2024"]
[Site "Chess.com"]
[Date "2024.03.26"]
[Round "1"]
[White "crescentmoon2411"]
[Black "tusplingher"]
[Result "1/2-1/2"]
[WhiteElo "2890"]
[BlackElo "2502"]
[TimeControl "180+1"]
[EndTime "8:06:55 PDT"]
[Termination "Game drawn by repetition"]

1. d4 {[%clk 0:02:55]} 1... Nf6 {[%clk 0:02:59.5]} 2. c4 {[%clk 0:02:55.4]} 2...
c5 {[%clk 0:02:59]} 3. d5 {[%clk 0:02:55.1]} 3... b5 {[%clk 0:02:58.8]} 4. cxb5
{[%clk 0:02:55]} 4... a6 {[%clk 0:02:58.8]} 5. bxa6 {[%clk 0:02:55]} 5... g6
{[%clk 0:02:57.1]} 6. Nc3 {[%clk 0:02:55.9]} 6... Bg7 {[%clk 0:02:56.5]} 7. e4
{[%clk 0:02:56.2]} 7... d6 {[%clk 0:02:55.8]} 8. Nf3 {[%clk 0:02:56.1]} 8... O-O
{[%clk 0:02:56]} 9. h3 {[%clk 0:02:55.8]} 9... Bxa6 {[%clk 0:02:56.1]} 10. Be2
{[%clk 0:02:53.7]} 10... Qa5 {[%clk 0:02:55]} 11. O-O {[%clk 0:02:53.5]} 11...
Bxe2 {[%clk 0:02:54.1]} 12. Qxe2 {[%clk 0:02:54.4]} 12... Qa6 {[%clk 0:02:53.9]}
13. Re1 {[%clk 0:02:53.4]} 13... Qxe2 {[%clk 0:02:42.6]} 14. Rxe2 {[%clk
0:02:54.3]} 14... Na6 {[%clk 0:02:43]} 15. Bg5 {[%clk 0:02:53.9]} 15... Rfb8
{[%clk 0:02:38.8]} 16. e5 {[%clk 0:02:51.2]} 16... dxe5 {[%clk 0:02:19.2]} 17.
Nxe5 {[%clk 0:02:52.1]} 17... Nb4 {[%clk 0:02:19.1]} 18. Rd1 {[%clk 0:02:49.4]}
18... h6 {[%clk 0:01:28]} 19. Bxf6 {[%clk 0:02:48.6]} 19... Bxf6 {[%clk
0:01:25.9]} 20. Nd7 {[%clk 0:02:48.1]} 20... Rd8 {[%clk 0:01:13.2]} 21. Nxf6+
{[%clk 0:02:47.6]} 21... exf6 {[%clk 0:01:14.1]} 22. a3 {[%clk 0:02:45.1]} 22...
Na6 {[%clk 0:01:14]} 23. Re7 {[%clk 0:02:42.5]} 23... c4 {[%clk 0:01:09.2]} 24.
Ne4 {[%clk 0:02:40.6]} 24... f5 {[%clk 0:00:58]} 25. Nf6+ {[%clk 0:02:40.4]}
25... Kg7 {[%clk 0:00:57.4]} 26. Nd7 {[%clk 0:02:27.3]} 26... Ra7 {[%clk
0:00:46.1]} 27. Nc5 {[%clk 0:02:27.5]} 27... Rxe7 {[%clk 0:00:44.1]} 28. Nxa6
{[%clk 0:02:27.7]} 28... Re2 {[%clk 0:00:39.8]} 29. Nb4 {[%clk 0:02:20.6]} 29...
Rxb2 {[%clk 0:00:35.2]} 30. Rc1 {[%clk 0:02:21.1]} 30... Rb3 {[%clk 0:00:29]}
31. Rxc4 {[%clk 0:02:21.1]} 31... Rxa3 {[%clk 0:00:29.3]} 32. g3 {[%clk
0:02:19.1]} 32... Ra4 {[%clk 0:00:26.3]} 33. Kg2 {[%clk 0:02:14.4]} 33... Rb8
{[%clk 0:00:23.3]} 34. Nc6 {[%clk 0:02:14.3]} 34... Rxc4 {[%clk 0:00:23.5]} 35.
Nxb8 {[%clk 0:02:15]} 35... Rd4 {[%clk 0:00:23.4]} 36. Nc6 {[%clk 0:02:15.4]}
36... Rxd5 {[%clk 0:00:23.5]} 37. Nb4 {[%clk 0:02:16.1]} 37... Rd6 {[%clk
0:00:23]} 38. Nc2 {[%clk 0:02:16.4]} 38... Kf6 {[%clk 0:00:23.3]} 39. Ne3 {[%clk
0:02:17]} 39... Re6 {[%clk 0:00:22.3]} 40. Nd5+ {[%clk 0:02:16.9]} 40... Ke5
{[%clk 0:00:22.5]} 41. Nf4 {[%clk 0:02:17.8]} 41... Rd6 {[%clk 0:00:21]} 42. h4
{[%clk 0:02:18.6]} 42... g5 {[%clk 0:00:20.3]} 43. hxg5 {[%clk 0:02:19.2]} 43...
hxg5 {[%clk 0:00:20.3]} 44. Nh3 {[%clk 0:02:19.9]} 44... f6 {[%clk 0:00:19.6]}
45. f4+ {[%clk 0:02:18.8]} 45... Ke4 {[%clk 0:00:15]} 46. fxg5 {[%clk 0:02:19]}
46... Rd2+ {[%clk 0:00:14.9]} 47. Kg1 {[%clk 0:02:19.3]} 47... fxg5 {[%clk
0:00:13.2]} 48. Nxg5+ {[%clk 0:02:19.3]} 48... Ke3 {[%clk 0:00:13.8]} 49. Kf1
{[%clk 0:02:19.6]} 49... Ra2 {[%clk 0:00:10.8]} 50. Kg1 {[%clk 0:02:19.8]} 50...
Ra6 {[%clk 0:00:10]} 51. Kg2 {[%clk 0:02:19.6]} 51... Rg6 {[%clk 0:00:09.5]} 52.
Nh3 {[%clk 0:02:20.1]} 52... Rg4 {[%clk 0:00:09.1]} 53. Nf2 {[%clk 0:02:20.4]}
53... Rg8 {[%clk 0:00:07]} 54. Nh3 {[%clk 0:02:19.1]} 54... Ke4 {[%clk
0:00:07.2]} 55. Nf2+ {[%clk 0:02:19.2]} 55... Ke5 {[%clk 0:00:06.4]} 56. Kf3
{[%clk 0:02:19.5]} 56... Ra8 {[%clk 0:00:05.8]} 57. Nd3+ {[%clk 0:02:19.5]}
57... Kf6 {[%clk 0:00:06.3]} 58. Nf2 {[%clk 0:02:19.2]} 58... Ra3+ {[%clk
0:00:06.3]} 59. Kf4 {[%clk 0:02:18.6]} 59... Ra4+ {[%clk 0:00:06]} 60. Kf3
{[%clk 0:02:19]} 60... Rd4 {[%clk 0:00:05.1]} 61. Nh3 {[%clk 0:02:16.5]} 61...
Ke5 {[%clk 0:00:04.2]} 62. Nf2 {[%clk 0:02:16.3]} 62... Ra4 {[%clk 0:00:03.4]}
63. Kg2 {[%clk 0:02:14.6]} 63... Ra3 {[%clk 0:00:03.5]} 64. Nh3 {[%clk
0:02:12.7]} 64... Kd4 {[%clk 0:00:03.9]} 65. Ng5 {[%clk 0:02:10.6]} 65... Ke3
{[%clk 0:00:04.2]} 66. Kg1 {[%clk 0:02:09.6]} 66... Ra2 {[%clk 0:00:04.3]} 67.
Kf1 {[%clk 0:02:09.5]} 67... Rb2 {[%clk 0:00:04.5]} 68. Kg1 {[%clk 0:02:09.9]}
68... Rf2 {[%clk 0:00:04.3]} 69. Nh3 {[%clk 0:02:09.6]} 69... Rd2 {[%clk
0:00:03]} 70. Ng5 {[%clk 0:02:09.9]} 70... Rd1+ {[%clk 0:00:02.7]} 71. Kg2
{[%clk 0:02:10.1]} 71... Rd2+ {[%clk 0:00:03.4]} 72. Kg1 {[%clk 0:02:10.4]}
72... Rd1+ {[%clk 0:00:04.1]} 73. Kg2 {[%clk 0:02:10.8]} 73... Rd2+ {[%clk
0:00:04.6]} 74. Kg1 {[%clk 0:02:11.3]} 1/2-1/2

[Event "Early-Titled-Tuesday-Blitz-March-26-2024"]
[Site "Chess.com"]
[Date "2024.03.26"]
[Round "1"]
[White "Logman74"]
[Black "tptagain"]
[Result "0-1"]
[WhiteElo "2516"]
[BlackElo "2947"]
[TimeControl "180+1"]
[EndTime "8:06:56 PDT"]
[Termination "tptagain won on time"]

1. e4 {[%clk 0:03:00.9]} 1... d6 {[%clk 0:02:59.7]} 2. d4 {[%clk 0:03:00.3]}
2... g6 {[%clk 0:02:59.7]} 3. Nc3 {[%clk 0:03:00.6]} 3... Bg7 {[%clk 0:02:59.9]}
4. f4 {[%clk 0:03:01]} 4... Nc6 {[%clk 0:02:59.4]} 5. Bb5 {[%clk 0:02:46.5]}
5... a6 {[%clk 0:02:54.3]} 6. Bxc6+ {[%clk 0:02:44]} 6... bxc6 {[%clk
0:02:55.2]} 7. Nf3 {[%clk 0:02:43.7]} 7... f5 {[%clk 0:02:49.6]} 8. e5 {[%clk
0:02:39.1]} 8... Nh6 {[%clk 0:02:49.1]} 9. O-O {[%clk 0:02:36.7]} 9... O-O
{[%clk 0:02:48.1]} 10. Qe2 {[%clk 0:02:31.5]} 10... Nf7 {[%clk 0:02:46.2]} 11.
Be3 {[%clk 0:02:18.8]} 11... e6 {[%clk 0:02:36.2]} 12. Rad1 {[%clk 0:02:14.4]}
12... Re8 {[%clk 0:02:34.9]} 13. Kh1 {[%clk 0:02:09.9]} 13... a5 {[%clk
0:02:34]} 14. Rfe1 {[%clk 0:02:02.7]} 14... Bb7 {[%clk 0:02:28.9]} 15. Bf2
{[%clk 0:01:59.6]} 15... h6 {[%clk 0:02:28.2]} 16. Qc4 {[%clk 0:01:46.7]} 16...
g5 {[%clk 0:02:18.5]} 17. fxg5 {[%clk 0:01:37]} 17... hxg5 {[%clk 0:02:10]} 18.
exd6 {[%clk 0:01:36.1]} 18... Nxd6 {[%clk 0:01:45.2]} 19. Qb3 {[%clk 0:01:21.3]}
19... a4 {[%clk 0:01:42.9]} 20. Nxa4 {[%clk 0:01:10.9]} 20... Ne4 {[%clk
0:01:43]} 21. Bg1 {[%clk 0:01:08.3]} 21... c5 {[%clk 0:01:13.2]} 22. Qxb7 {[%clk
0:00:48.7]} 22... Rxa4 {[%clk 0:01:13.2]} 23. dxc5 {[%clk 0:00:46.6]} 23... Qe7
{[%clk 0:01:13.6]} 24. Qb3 {[%clk 0:00:31.2]} 24... Raa8 {[%clk 0:01:03.8]} 25.
c6 {[%clk 0:00:20.9]} 25... Rad8 {[%clk 0:00:54.5]} 26. Qc4 {[%clk 0:00:17.5]}
26... g4 {[%clk 0:00:52]} 27. Nd4 {[%clk 0:00:16.7]} 27... Qh4 {[%clk
0:00:47.5]} 28. Rxe4 {[%clk 0:00:15.1]} 28... fxe4 {[%clk 0:00:48.4]} 29. Nxe6
{[%clk 0:00:12.9]} 29... Rxd1 {[%clk 0:00:42.5]} 30. Ng5+ {[%clk 0:00:04.2]}
30... Kh8 {[%clk 0:00:41.3]} 31. Nf7+ {[%clk 0:00:02.5]} 31... Kh7 {[%clk
0:00:41.3]} 32. Qe2 {[%clk 0:00:01.2]} 32... Rd5 {[%clk 0:00:30.8]} 0-1

[Event "Early-Titled-Tuesday-Blitz-March-26-2024"]
[Site "Chess.com"]
[Date "2024.03.26"]
[Round "1"]
[White "MarijaKuznecova"]
[Black "DeTimmerman"]
[Result "0-1"]
[WhiteElo "2412"]
[BlackElo "2747"]
[TimeControl "180+1"]
[EndTime "8:06:56 PDT"]
[Termination "DeTimmerman won on time"]

1. e4 {[%clk 0:03:00.9]} 1... e5 {[%clk 0:03:00.2]} 2. Nf3 {[%clk 0:03:00.6]}
2... Nc6 {[%clk 0:02:59.5]} 3. d4 {[%clk 0:03:00.2]} 3... exd4 {[%clk
0:03:00.4]} 4. Nxd4 {[%clk 0:03:00.6]} 4... Nf6 {[%clk 0:03:01.1]} 5. Nxc6
{[%clk 0:02:59.4]} 5... bxc6 {[%clk 0:03:02]} 6. e5 {[%clk 0:02:59.4]} 6... Qe7
{[%clk 0:03:02.8]} 7. Qe2 {[%clk 0:02:57.1]} 7... Nd5 {[%clk 0:03:03.5]} 8. c4
{[%clk 0:02:57.4]} 8... Nb6 {[%clk 0:03:03.5]} 9. Nc3 {[%clk 0:02:55.9]} 9... g6
{[%clk 0:03:03.2]} 10. Ne4 {[%clk 0:02:41]} 10... Qe6 {[%clk 0:03:02.7]} 11. Bg5
{[%clk 0:02:17.6]} 11... Bb4+ {[%clk 0:02:55.6]} 12. Kd1 {[%clk 0:01:50.8]}
12... Be7 {[%clk 0:02:52.4]} 13. Nf6+ {[%clk 0:01:38.7]} 13... Kd8 {[%clk
0:02:49.1]} 14. Bh6 {[%clk 0:01:09.9]} 14... Bxf6 {[%clk 0:02:22.5]} 15. exf6
{[%clk 0:01:09.4]} 15... d6 {[%clk 0:02:23.2]} 16. Qxe6 {[%clk 0:00:46.7]} 16...
Bxe6 {[%clk 0:02:24.1]} 17. b3 {[%clk 0:00:47.2]} 17... Nd7 {[%clk 0:02:17.8]}
18. Bg7 {[%clk 0:00:42.3]} 18... Re8 {[%clk 0:02:15.8]} 19. Bd3 {[%clk 0:00:40]}
19... a5 {[%clk 0:02:00.3]} 20. Kd2 {[%clk 0:00:33.1]} 20... a4 {[%clk
0:01:59.6]} 21. Kc3 {[%clk 0:00:32.3]} 21... Nc5 {[%clk 0:01:43.1]} 22. Bc2
{[%clk 0:00:31.3]} 22... axb3 {[%clk 0:01:42.2]} 23. axb3 {[%clk 0:00:31.7]}
23... Kd7 {[%clk 0:01:42.7]} 24. h4 {[%clk 0:00:28]} 24... Rxa1 {[%clk 0:01:35]}
25. Rxa1 {[%clk 0:00:28.9]} 25... Bf5 {[%clk 0:01:35.5]} 26. Bxf5+ {[%clk
0:00:17.4]} 26... gxf5 {[%clk 0:01:36.4]} 27. Ra2 {[%clk 0:00:09.1]} 27... Re6
{[%clk 0:01:30.8]} 28. f3 {[%clk 0:00:08.2]} 28... Re3+ {[%clk 0:01:30.5]} 29.
Kd2 {[%clk 0:00:06.9]} 29... Rxb3 {[%clk 0:01:30.7]} 30. Ra8 {[%clk 0:00:06.3]}
30... Ne6 {[%clk 0:01:26.7]} 31. Rh8 {[%clk 0:00:05.4]} 31... Rb2+ {[%clk
0:01:26.8]} 32. Ke3 {[%clk 0:00:05.1]} 32... Rxg2 {[%clk 0:01:27.7]} 33. Rxh7
{[%clk 0:00:05.3]} 33... d5 {[%clk 0:01:13]} 34. h5 {[%clk 0:00:03.3]} 34... Kd6
{[%clk 0:01:07.8]} 35. cxd5 {[%clk 0:00:02.1]} 35... cxd5 {[%clk 0:01:07.9]} 36.
Bh6 {[%clk 0:00:02.8]} 36... c5 {[%clk 0:01:00.4]} 37. Rxf7 {[%clk 0:00:02.5]}
37... c4 {[%clk 0:01:01.2]} 38. Bf8+ {[%clk 0:00:02.1]} 38... Ke5 {[%clk
0:01:01.2]} 39. f4+ {[%clk 0:00:01.7]} 39... Nxf4 {[%clk 0:01:01.7]} 40. Re7+
{[%clk 0:00:01.8]} 40... Ne6 {[%clk 0:01:01.6]} 41. Bh6 {[%clk 0:00:02]} 41...
d4+ {[%clk 0:01:01.8]} 42. Kf3 {[%clk 0:00:02.1]} 42... Rh2 {[%clk 0:00:59.3]}
43. Bf4+ {[%clk 0:00:01.3]} 43... Kxf6 {[%clk 0:00:59.1]} 44. Rh7 {[%clk
0:00:01.4]} 44... Rh3+ {[%clk 0:00:53.9]} 45. Kg2 {[%clk 0:00:01.3]} 45... Nxf4+
{[%clk 0:00:54]} 0-1